bitfinex-derivatives/quotes_ETHF0:USTF0_20230105
["timestamp","ask_amount","ask_price","bid_price","bid_amount"]
[1672955198941,2.38465271,1252.6,1252.5,4.39665872]
[1672955200206,2.38465271,1252.6,1252.5,6.18727826]
[1672955200938,2.38465271,1252.6,1252.5,4.39665872]
[1672955201676,7.36575416,1252.6,1252.5,3.2078]
[1672955201993,4.98110145,1252.6,1252.5,3.2078]
[1672955205778,2.0,1252.6,1252.5,3.2078]
[1672955207142,2.98254131,1252.6,1252.5,3.2078]
[1672955207355,2.0,1252.6,1252.5,3.2078]
[1672955207766,2.0,1252.6,1252.4,10.486]
[1672955207972,5.36852349,1252.5,1252.4,10.486]
[1672955208191,5.36852349,1252.5,1252.4,13.6938]
[1672955209343,2.98251305,1252.5,1252.4,3.2078]
[1672955209554,2.98251305,1252.5,1252.4,5.7078]
[1672955210931,5.36854955,1252.5,1252.4,5.7078]
[1672955211142,2.98251305,1252.5,1252.4,5.7078]
[1672955211978,5.36888093,1252.5,1252.4,5.7078]
[1672955212188,5.36888093,1252.5,1252.4,7.49841954]
[1672955213451,5.36888093,1252.5,1252.4,4.29061954]
[1672955213658,5.36888093,1252.5,1252.4,7.49841954]
[1672955214080,2.98251305,1252.5,1252.4,5.7078]
[1672955214709,5.36913986,1252.5,1252.4,7.49841954]
[1672955214924,2.98251305,1252.5,1252.4,4.29061954]
[1672955215137,5.36912914,1252.5,1252.4,7.49841954]
[1672955216294,2.98251305,1252.5,1252.4,5.7078]
[1672955217450,2.98251305,1252.5,1252.4,7.49841954]
[1672955218504,2.98251305,1252.5,1252.4,4.29061954]
[1672955218698,2.98251305,1252.5,1252.4,7.49841954]
[1672955219337,2.98251305,1252.5,1252.4,4.29061954]
[1672955219650,2.98251305,1252.5,1252.4,5.7078]
[1672955220808,2.98251305,1252.5,1252.4,4.29061954]
[1672955221026,2.98251305,1252.5,1252.4,7.49841954]
[1672955221436,2.98251305,1252.5,1252.4,4.29061954]
[1672955221642,2.98251305,1252.5,1252.4,5.7078]
[1672955222176,2.98251305,1252.5,1252.4,7.49841954]
[1672955224170,2.98251305,1252.5,1252.4,4.29061954]
[1672955224379,2.98251305,1252.5,1252.4,7.49841954]
[1672955224699,2.98251305,1252.5,1252.4,4.29061954]
[1672955225122,2.98251305,1252.5,1252.4,7.49841954]
[1672955225333,2.98251305,1252.5,1252.4,4.29061954]
[1672955225757,2.98251305,1252.5,1252.4,7.49841954]
[1672955226066,2.98251305,1252.5,1252.4,4.29061954]
[1672955226275,2.98251305,1252.5,1252.4,7.49841954]
[1672955227123,2.98251305,1252.5,1252.4,4.29061954]
[1672955227328,2.98251305,1252.5,1252.4,7.49841954]
[1672955228797,2.98251305,1252.5,1252.4,4.29061954]
[1672955229010,2.98251305,1252.5,1252.4,7.49841954]
[1672955229952,2.98251305,1252.5,1252.4,4.29061954]
[1672955230163,2.98251305,1252.5,1252.4,7.49841954]
[1672955230366,2.98251305,1252.5,1252.4,4.29061954]
[1672955230581,2.98251305,1252.5,1252.4,7.49841954]
[1672955233437,2.98251305,1252.5,1252.4,4.29061954]
[1672955233746,2.98251305,1252.5,1252.4,7.49841954]
[1672955234679,5.37084855,1252.5,1252.4,7.49841954]
[1672955234889,2.98251305,1252.5,1252.4,9.8923203]
[1672955235323,2.98251305,1252.5,1252.4,6.6845203]
[1672955235739,5.37106183,1252.5,1252.4,9.8923203]
[1672955236052,2.38854878,1252.5,1252.4,9.51674987]
[1672955236475,2.38854878,1252.5,1252.4,17.50274987]
[1672955237525,2.38854878,1252.5,1252.4,14.29494987]
[1672955237737,2.38854878,1252.5,1252.4,20.49596795]
[1672955238795,2.38854878,1252.5,1252.4,17.50274987]
[1672955240050,2.38854878,1252.5,1252.4,18.10206719]
[1672955240262,2.98251305,1252.6,1252.4,18.10206719]
[1672955240263,2.38854878,1252.6,1252.4,18.10206719]
[1672955240471,2.38854878,1252.6,1252.5,12.87908017]
[1672955240888,2.38854878,1252.6,1252.5,14.2939982]
[1672955241625,2.38854878,1252.6,1252.5,17.28721628]
[1672955242255,2.38854878,1252.6,1252.5,14.2939982]
[1672955243207,2.38854878,1252.6,1252.5,12.87908017]
[1672955243632,2.38854878,1252.6,1252.5,14.67288049]
[1672955243839,2.38854878,1252.6,1252.5,12.27980032]
[1672955245624,5.37106183,1252.6,1252.5,12.27980032]
[1672955246051,2.38854878,1252.6,1252.5,12.27980032]
[1672955250150,2.38854878,1252.6,1252.5,16.08688017]
[1672955250569,2.38854878,1252.6,1252.5,17.87997211]
[1672955251204,5.37106183,1252.7,1252.5,16.08688017]
[1672955251511,5.36957685,1252.7,1252.6,4.29304967]
[1672955252361,2.98251305,1252.7,1252.6,4.29304967]
[1672955252565,5.3695101,1252.7,1252.6,4.29304967]
[1672955252772,5.3695101,1252.7,1252.6,2.5]
[1672955253299,3.85013878,1252.7,1252.6,18.486]
[1672955253513,3.5848667,1253.2,1252.7,10.486]
[1672955253718,3.5848667,1253.2,1253.1,1.5]
[1672955254133,6.0848667,1253.2,1253.1,1.5]
[1672955254563,2.5,1253.2,1253.1,1.5]
[1672955258760,2.5,1253.2,1253.1,4.7078]
[1672955260129,2.5,1253.2,1253.1,3.2078]
[1672955260450,2.5,1253.2,1253.0,2.5]
[1672955262031,2.5,1253.2,1253.1,3.2078]
[1672955264441,2.5,1253.2,1253.0,2.5]
[1672955265070,2.5,1253.2,1253.0,5.7078]
[1672955267916,2.5,1253.2,1253.0,3.2078]
[1672955268235,2.5,1253.2,1253.0,5.7078]
[1672955268640,2.5,1253.2,1253.0,3.2078]
[1672955268853,5.7078,1253.2,1252.8,11.1938]
[1672955269062,9.2926667,1253.2,1252.8,3.2078]
[1672955269275,3.5848667,1253.1,1252.7,0.31434809]
[1672955270545,3.5848667,1253.1,1252.7,2.81434809]
[1672955271067,6.7926667,1253.1,1252.7,6.02214809]
[1672955271490,6.7926667,1253.1,1252.7,3.52214809]
[1672955271901,10.97556148,1253.1,1252.7,3.52214809]
[1672955272113,7.76776148,1253.1,1252.7,0.31434809]
[1672955272327,10.97556148,1253.1,1252.7,3.52214809]
[1672955272532,3.5848667,1253.0,1252.7,3.52214809]
[1672955273593,2.97739066,1252.8,1252.7,3.52214809]
[1672955276534,2.97739066,1252.8,1252.7,0.31434809]
[1672955280318,4.97739066,1252.9,1252.7,0.31434809]
[1672955280736,4.97739066,1252.9,1252.7,2.81434809]
[1672955280945,2.0,1252.9,1252.8,3.2078]
[1672955281366,2.97739066,1253.0,1252.8,3.2078]
[1672955281576,2.97739066,1253.0,1252.9,2.5]
[1672955284101,2.97739066,1253.0,1252.9,5.7078]
[1672955285046,2.97739066,1253.0,1252.9,2.5]
[1672955285260,2.97739066,1253.0,1252.9,3.2078]
[1672955288311,2.97739066,1253.0,1252.7,12.59277706]
[1672955288522,2.3847575,1252.9,1252.7,12.59277706]
[1672955288830,2.0,1252.8,1252.7,12.59277706]
[1672955289041,4.3847575,1252.9,1252.7,15.80057706]
[1672955289251,4.3847575,1252.9,1252.8,3.2078]
[1672955290406,2.3847575,1252.9,1252.8,3.2078]
[1672955290934,2.3847575,1252.9,1252.7,12.59277706]
[1672955291141,2.3847575,1252.9,1252.8,3.2078]
[1672955291671,2.3847575,1253.0,1252.8,5.00022897]
[1672955291874,5.36214816,1253.0,1252.9,2.5]
[1672955292299,2.3847575,1253.0,1252.9,2.5]
[1672955293348,5.36214816,1253.0,1252.9,2.5]
[1672955293560,2.3847575,1253.0,1252.9,2.5]
[1672955294606,2.3847575,1253.0,1252.9,4.29242897]
[1672955294816,2.3847575,1253.0,1252.9,2.5]
[1672955295769,2.3847575,1253.0,1252.9,5.7078]
[1672955296602,2.3847575,1253.0,1252.9,2.5]
[1672955296820,2.3847575,1253.0,1252.9,5.7078]
[1672955301959,2.3847575,1253.0,1252.9,2.5]
[1672955302165,2.3847575,1253.0,1252.9,5.7078]
[1672955303644,5.36214816,1253.0,1252.9,5.7078]
[1672955306381,2.3847575,1253.0,1252.9,2.5]
[1672955306589,2.3847575,1253.0,1252.9,5.7078]
[1672955307432,2.97739066,1253.0,1252.9,5.7078]
[1672955307642,2.97739066,1253.0,1252.9,3.2078]
[1672955307853,2.97739066,1253.0,1252.8,11.27842897]
[1672955308060,2.97739066,1253.0,1252.9,3.2078]
[1672955308270,2.97739066,1253.0,1252.9,5.7078]
[1672955308796,5.36372772,1253.0,1252.9,5.7078]
[1672955309319,2.97739066,1253.0,1252.9,5.7078]
[1672955309741,2.97739066,1253.0,1252.9,3.2078]
[1672955310153,4.7662667,1253.1,1252.7,7.21614568]
[1672955310368,2.3861702,1252.8,1252.7,7.21614568]
[1672955310578,4.3861702,1252.8,1252.7,7.21614568]
[1672955311316,4.3861702,1252.8,1252.7,4.71614568]
[1672955315108,7.36888295,1252.8,1252.7,4.71614568]
[1672955315945,7.36888295,1252.8,1252.7,1.50834568]
[1672955316154,7.36888295,1252.8,1252.7,4.71614568]
[1672955316893,7.36888295,1252.8,1252.7,1.50834568]
[1672955317200,7.36888295,1252.8,1252.7,4.71614568]
[1672955317415,4.98271275,1252.8,1252.7,4.71614568]
[1672955318890,7.36998328,1252.8,1252.7,4.71614568]
[1672955319415,4.98271275,1252.8,1252.7,4.71614568]
[1672955321942,4.98271275,1252.8,1252.7,4.708597]
[1672955328038,2.98271275,1252.8,1252.7,4.708597]
[1672955328459,2.98271275,1252.8,1252.7,1.500797]
[1672955328672,2.98271275,1252.8,1252.7,4.708597]
[1672955329195,5.36916885,1252.8,1252.7,4.708597]
[1672955329404,2.98271275,1252.8,1252.7,3.51459941]
[1672955329719,5.36916012,1252.8,1252.7,4.708597]
[1672955330136,2.38644737,1252.8,1252.7,4.708597]
[1672955330349,5.36916012,1252.8,1252.7,4.708597]
[1672955331403,2.38644737,1252.8,1252.7,4.708597]
[1672955331718,5.36916012,1252.8,1252.7,4.708597]
[1672955332344,2.38644737,1252.8,1252.7,4.708597]
[1672955333083,5.36916012,1252.8,1252.7,4.708597]
[1672955333286,2.98271275,1252.8,1252.7,3.51459941]
[1672955334028,2.98271275,1252.8,1252.7,0.30679941]
[1672955334230,2.98271275,1252.8,1252.6,8.69422656]
[1672955334441,2.38625233,1252.7,1252.6,8.69422656]
[1672955334861,2.38625233,1252.7,1252.6,5.48642656]
[1672955335075,2.38625233,1252.7,1252.6,8.69422656]
[1672955335494,2.38625233,1252.7,1252.6,5.48642656]
[1672955336023,2.38625233,1252.7,1252.6,8.69422656]
[1672955336226,2.38625233,1252.7,1252.6,5.48642656]
[1672955336436,2.38625233,1252.7,1252.6,8.69422656]
[1672955336646,2.38625233,1252.7,1252.6,7.50022897]
[1672955336859,5.36896508,1252.8,1252.6,7.50022897]
[1672955337080,2.38625233,1252.7,1252.6,7.50022897]
[1672955337502,2.38625233,1252.7,1252.6,8.69510545]
[1672955339291,2.38625233,1252.7,1252.6,7.50022897]
[1672955341069,2.38625233,1252.7,1252.6,4.29242897]
[1672955341391,2.38625233,1252.7,1252.6,7.50022897]
[1672955342233,2.38625233,1252.7,1252.6,4.29242897]
[1672955342446,2.38625233,1252.7,1252.6,7.50022897]
[1672955343811,2.38625233,1252.7,1252.6,4.29242897]
[1672955344125,2.38625233,1252.7,1252.6,7.50022897]
[1672955344330,2.38625233,1252.7,1252.6,8.09770529]
[1672955345280,2.38625233,1252.7,1252.6,9.51251022]
[1672955346226,5.36896508,1252.8,1252.6,12.49989183]
[1672955346539,5.36896508,1252.8,1252.7,1.79383477]
[1672955347172,5.36896508,1252.8,1252.7,5.00163477]
[1672955347378,2.98271275,1252.8,1252.7,7.39154006]
[1672955347694,2.98271275,1252.8,1252.7,1.79383477]
[1672955347899,2.98271275,1252.8,1252.7,5.00163477]
[1672955348335,2.98271275,1252.8,1252.7,7.39154006]
[1672955348542,2.98271275,1252.8,1252.7,5.00163477]
[1672955349052,2.98271275,1252.8,1252.7,1.79383477]
[1672955349263,2.98271275,1252.8,1252.7,7.39154006]
[1672955352004,2.98271275,1252.8,1252.7,5.59770529]
[1672955353264,2.98271275,1252.8,1252.7,7.39322211]
[1672955353477,2.98271275,1252.8,1252.7,4.18542211]
[1672955353994,2.98271275,1252.8,1252.7,7.39322211]
[1672955355053,2.98271275,1252.8,1252.7,4.18542211]
[1672955355259,2.98271275,1252.8,1252.7,7.39322211]
[1672955356631,2.98271275,1252.8,1252.7,4.18542211]
[1672955356835,2.98271275,1252.8,1252.7,7.39322211]
[1672955357051,5.37373605,1252.8,1252.7,12.49983559]
[1672955357247,5.37373605,1252.8,1252.7,10.1099303]
[1672955357248,2.3910233,1252.8,1252.7,10.1099303]
[1672955358208,2.3910233,1252.8,1252.7,6.9021303]
[1672955358418,2.3910233,1252.8,1252.7,10.1099303]
[1672955358732,2.3910233,1252.8,1252.7,12.50311836]
[1672955359680,2.3910233,1252.8,1252.7,10.1099303]
[1672955360619,2.3910233,1252.8,1252.7,12.50252611]
[1672955360835,2.3910233,1252.8,1252.7,10.1099303]
[1672955361255,2.3910233,1252.8,1252.7,18.0959303]
[1672955362514,2.3910233,1252.8,1252.7,20.48845651]
[1672955362934,2.3910233,1252.8,1252.7,17.5010749]
[1672955364303,2.3910233,1252.8,1252.7,14.2932749]
[1672955364514,2.3910233,1252.8,1252.7,17.5010749]
[1672955365033,2.3910233,1252.8,1252.7,14.2932749]
[1672955365247,2.3910233,1252.8,1252.7,17.5010749]
[1672955369446,2.3910233,1252.8,1252.7,14.2932749]
[1672955369663,2.3910233,1252.8,1252.7,17.5010749]
[1672955370082,2.3910233,1252.8,1252.7,14.2932749]
[1672955370294,2.3910233,1252.8,1252.7,17.5010749]
[1672955370502,2.3910233,1252.8,1252.7,14.2932749]
[1672955370716,2.3910233,1252.8,1252.7,17.5010749]
[1672955371026,2.3910233,1252.8,1252.7,14.2932749]
[1672955371224,2.3910233,1252.8,1252.7,17.5010749]
[1672955373339,2.3910233,1252.8,1252.7,14.2932749]
[1672955373759,2.3910233,1252.8,1252.7,17.5010749]
[1672955374173,2.3910233,1252.8,1252.7,14.2932749]
[1672955374490,2.3910233,1252.8,1252.7,20.48845651]
[1672955374703,5.37373605,1252.9,1252.8,2.5]
[1672955374908,5.37373605,1252.9,1252.8,4.29365103]
[1672955375232,5.37373605,1252.9,1252.8,7.50145103]
[1672955377857,5.37373605,1252.9,1252.8,4.29365103]
[1672955378068,5.37373605,1252.9,1252.8,7.50145103]
[1672955379639,2.98271275,1252.9,1252.8,7.50145103]
[1672955380379,2.98271275,1252.9,1252.8,4.29365103]
[1672955380692,2.98271275,1252.9,1252.8,7.50145103]
[1672955381103,2.98271275,1252.9,1252.8,4.29365103]
[1672955381314,2.98271275,1252.9,1252.8,7.50145103]
[1672955381741,5.37168383,1252.9,1252.8,9.89397724]
[1672955382896,5.37168383,1252.9,1252.8,6.68617724]
[1672955383105,5.37168383,1252.9,1252.8,9.89397724]
[1672955383953,5.37168383,1252.9,1252.8,6.68617724]
[1672955384157,5.37168383,1252.9,1252.8,9.89397724]
[1672955384687,2.98271275,1252.9,1252.8,9.89397724]
[1672955385001,2.98271275,1252.9,1252.8,7.50145103]
[1672955385413,2.98271275,1252.9,1252.8,9.89397724]
[1672955385940,2.98271275,1252.9,1252.8,7.50145103]
[1672955386565,2.98271275,1252.9,1252.8,4.29365103]
[1672955386781,2.98271275,1252.9,1252.8,7.50145103]
[1672955386990,2.98271275,1252.9,1252.8,4.29365103]
[1672955387411,2.98271275,1252.9,1252.8,7.50145103]
[1672955388372,2.98271275,1252.9,1252.8,4.29365103]
[1672955388572,2.98271275,1252.9,1252.8,7.50145103]
[1672955389415,2.98271275,1252.9,1252.8,9.89397724]
[1672955390153,2.98271275,1252.9,1252.8,6.68617724]
[1672955390362,2.98271275,1252.9,1252.8,9.89397724]
[1672955390576,2.98271275,1252.9,1252.8,6.68617724]
[1672955390785,2.98271275,1252.9,1252.8,9.89397724]
[1672955391836,2.98271275,1252.9,1252.8,8.10032621]
[1672955392037,5.37212371,1252.9,1252.8,8.10032621]
[1672955392253,2.98271275,1252.9,1252.8,8.10032621]
[1672955392881,2.98271275,1252.9,1252.8,8.09351144]
[1672955393308,2.98271275,1252.9,1252.8,4.88571144]
[1672955393626,2.98271275,1252.9,1252.8,8.09351144]
[1672955393930,2.98271275,1252.9,1252.8,4.88571144]
[1672955394466,2.98271275,1252.9,1252.8,8.09351144]
[1672955394667,2.98271275,1252.9,1252.8,9.5081448]
[1672955394878,2.98271275,1252.9,1252.8,6.3003448]
[1672955395089,2.98271275,1252.9,1252.8,9.5081448]
[1672955395408,2.98271275,1252.9,1252.8,6.3003448]
[1672955395619,2.98271275,1252.9,1252.8,9.5081448]
[1672955395938,5.37279976,1252.9,1252.8,9.5081448]
[1672955396459,2.98271275,1252.9,1252.8,9.5081448]
[1672955396671,2.98271275,1252.9,1252.8,12.49552641]
[1672955396876,2.98271275,1252.9,1252.8,9.28772641]
[1672955397086,5.37347137,1252.9,1252.8,12.49552641]
[1672955397299,2.98271275,1252.9,1252.8,12.49552641]
[1672955397931,2.98271275,1252.9,1252.8,9.5081448]
[1672955398669,2.98271275,1252.9,1252.8,6.3003448]
[1672955398874,2.98271275,1252.9,1252.8,9.5081448]
[1672955399089,2.98271275,1252.9,1252.8,6.3003448]
[1672955399509,2.98271275,1252.9,1252.8,9.5081448]
[1672955402136,2.98271275,1252.9,1252.8,6.3003448]
[1672955402350,2.98271275,1252.9,1252.8,9.5081448]
[1672955403189,2.98271275,1252.9,1252.8,6.3003448]
[1672955403395,2.98271275,1252.9,1252.8,9.5081448]
[1672955404031,2.98271275,1252.9,1252.8,6.3003448]
[1672955404230,2.98271275,1252.9,1252.8,9.5081448]
[1672955404963,2.39090776,1252.9,1252.8,12.49552641]
[1672955405919,2.39090776,1252.9,1252.8,10.1030002]
[1672955407493,2.39090776,1252.9,1252.8,12.49648929]
[1672955407912,2.39090776,1252.9,1252.8,9.28868929]
[1672955408331,2.39090776,1252.9,1252.8,12.49648929]
[1672955408544,2.39090776,1252.9,1252.8,10.1030002]
[1672955410544,2.39090776,1252.9,1252.8,6.8952002]
[1672955410749,2.39090776,1252.9,1252.8,10.1030002]
[1672955412122,2.39090776,1252.9,1252.8,6.8952002]
[1672955412537,2.39090776,1252.9,1252.8,10.1030002]
[1672955412745,2.39090776,1252.9,1252.8,12.49598987]
[1672955415068,2.39090776,1252.9,1252.8,9.28818987]
[1672955415272,2.39090776,1252.9,1252.8,12.49598987]
[1672955416010,2.39090776,1252.9,1252.8,9.28818987]
[1672955416222,2.39090776,1252.9,1252.8,12.49598987]
[1672955417484,2.39090776,1252.9,1252.8,9.50860826]
[1672955419167,2.39090776,1252.9,1252.8,6.30080826]
[1672955419379,2.39090776,1252.9,1252.8,9.50860826]
[1672955419685,2.39090776,1252.9,1252.8,12.49598987]
[1672955420426,2.39090776,1252.9,1252.8,9.28818987]
[1672955420839,2.39090776,1252.9,1252.8,12.49598987]
[1672955421159,2.39090776,1252.9,1252.8,9.28818987]
[1672955421366,2.39090776,1252.9,1252.8,9.50860826]
[1672955421687,2.39090776,1252.9,1252.8,6.30080826]
[1672955421897,2.39090776,1252.9,1252.8,9.50860826]
[1672955423368,2.39090776,1252.9,1252.8,6.30080826]
[1672955423571,2.39090776,1252.9,1252.8,9.50860826]
[1672955423777,2.39090776,1252.9,1252.8,6.30080826]
[1672955423996,2.39090776,1252.9,1252.8,9.50860826]
[1672955424835,2.39090776,1252.9,1252.8,6.30080826]
[1672955425046,2.39090776,1252.9,1252.8,9.50860826]
[1672955425463,2.39090776,1252.9,1252.8,6.30080826]
[1672955425991,2.39090776,1252.9,1252.8,10.1030002]
[1672955427046,2.38484591,1252.9,1252.8,10.1030002]
[1672955427884,2.38484591,1252.9,1252.8,6.8952002]
[1672955428096,2.38484591,1252.9,1252.8,10.1030002]
[1672955431033,2.38484591,1252.9,1252.8,6.8952002]
[1672955431562,2.38484591,1252.9,1252.8,10.1030002]
[1672955432081,5.36755866,1252.9,1252.8,12.49666492]
[1672955433016,5.36755866,1252.9,1252.8,9.28886492]
[1672955433230,5.36755866,1252.9,1252.8,12.49666492]
[1672955433659,2.98271275,1252.9,1252.8,9.50928331]
[1672955434289,2.98271275,1252.9,1252.8,6.30148331]
[1672955434706,2.98271275,1252.9,1252.8,9.50928331]
[1672955436185,2.98271275,1252.9,1252.8,6.30148331]
[1672955436394,2.98271275,1252.9,1252.8,9.50928331]
[1672955437550,2.98271275,1252.9,1252.8,6.30148331]
[1672955437752,2.98271275,1252.9,1252.8,9.50928331]
[1672955439231,2.98271275,1252.9,1252.8,6.30148331]
[1672955439436,2.98271275,1252.9,1252.8,9.50928331]
[1672955443217,2.98271275,1252.9,1252.8,6.30148331]
[1672955443535,2.98271275,1252.9,1252.8,9.50928331]
[1672955445116,2.98271275,1252.9,1252.8,6.30148331]
[1672955445640,2.98271275,1252.9,1252.8,9.50928331]
[1672955447008,2.98271275,1252.9,1252.8,6.30148331]
[1672955447219,2.98271275,1252.9,1252.8,9.50928331]
[1672955447845,2.98271275,1252.9,1252.8,12.49666492]
[1672955448060,2.98271275,1253.0,1252.8,10.1030002]
[1672955448266,4.98271275,1253.0,1252.9,4.18882]
[1672955448684,4.98271275,1253.0,1252.9,7.39662]
[1672955449099,4.98271275,1253.0,1252.9,4.18882]
[1672955449630,4.98271275,1253.0,1252.9,7.39662]
[1672955451941,2.0,1253.0,1252.9,5.00300857]
[1672955452158,4.98882205,1253.0,1252.9,7.39662]
[1672955453418,4.98882205,1253.0,1252.9,4.18882]
[1672955453630,4.98882205,1253.0,1252.9,7.39662]
[1672955455520,4.98882205,1253.0,1252.9,4.18882]
[1672955455724,4.98882205,1253.0,1252.9,7.39662]
[1672955456043,4.98882205,1253.0,1252.9,4.18882]
[1672955456246,4.98882205,1253.0,1252.9,7.39662]
[1672955456668,2.0,1253.0,1252.9,5.00300857]
[1672955458041,3.5848667,1253.1,1252.9,4.18882]
[1672955458349,3.5848667,1253.1,1253.0,3.69688009]
[1672955459188,3.5848667,1253.1,1253.0,1.19688009]
[1672955462571,3.5848667,1253.1,1253.0,4.40468009]
[1672955463200,3.5848667,1253.1,1253.0,1.19688009]
[1672955473179,3.5848667,1253.1,1253.0,3.69688009]
[1672955473500,3.5848667,1253.1,1253.0,2.99208866]
[1672955474339,3.5848667,1253.1,1253.0,6.19988866]
[1672955474964,3.5848667,1253.1,1253.0,4.40468009]
[1672955475177,3.5848667,1253.1,1253.0,6.19988866]
[1672955476970,3.5848667,1253.1,1253.0,2.99208866]
[1672955477497,3.5848667,1253.1,1253.0,6.19988866]
[1672955478441,3.5848667,1253.1,1253.0,4.40468009]
[1672955479384,3.5848667,1253.1,1253.0,1.19688009]
[1672955481478,3.5848667,1253.1,1253.0,3.69688009]
[1672955481695,3.5848667,1253.1,1253.0,5.49208866]
[1672955481906,3.5848667,1253.1,1253.0,1.19688009]
[1672955486112,3.5848667,1253.1,1253.0,3.69688009]
[1672955486959,3.5848667,1253.1,1253.0,5.49208866]
[1672955488745,3.5848667,1253.1,1253.0,8.69988866]
[1672955488952,3.5848667,1253.1,1253.0,5.49208866]
[1672955489587,3.5848667,1253.1,1253.0,8.69988866]
[1672955489898,3.5848667,1253.1,1253.0,6.19988866]
[1672955491899,3.5848667,1253.1,1253.0,2.99208866]
[1672955492207,3.5848667,1253.1,1253.0,6.19988866]
[1672955498525,3.5848667,1253.1,1253.0,2.99208866]
[1672955499991,3.5848667,1253.1,1253.0,1.19688009]
[1672955503675,3.5848667,1253.1,1253.0,2.99208866]
[1672955506936,3.5848667,1253.1,1253.0,6.19988866]
[1672955509028,3.5848667,1253.1,1253.0,2.99208866]
[1672955509238,3.5848667,1253.1,1253.0,6.19988866]
[1672955510609,3.5848667,1253.1,1253.0,2.99208866]
[1672955510826,3.5848667,1253.1,1253.0,6.19988866]
[1672955517332,3.5848667,1253.1,1253.0,5.00300857]
[1672955517859,3.5848667,1253.1,1253.0,6.20015341]
[1672955518491,3.5848667,1253.1,1252.9,2.99235341]
[1672955518696,5.5848667,1253.0,1252.9,2.99235341]
[1672955522896,2.0,1253.0,1252.9,2.99235341]
[1672955523528,5.5848667,1253.0,1252.9,2.99235341]
[1672955524157,2.0,1253.0,1252.9,1.19714484]
[1672955525110,5.5848667,1253.0,1252.9,1.19714484]
[1672955526160,2.0,1253.0,1252.9,1.19714484]
[1672955533623,3.5848667,1253.1,1252.9,1.19714484]
[1672955534466,2.9859952,1253.0,1252.9,2.99235341]
[1672955534668,4.9859952,1253.0,1252.9,2.99235341]
[1672955538137,4.9859952,1253.0,1252.9,6.20015341]
[1672955538343,2.9859952,1253.0,1252.9,6.20015341]
[1672955539085,2.9859952,1253.0,1252.9,5.00300857]
[1672955539297,2.9859952,1253.0,1252.9,6.19919873]
[1672955539821,2.9859952,1253.0,1252.9,5.00300857]
[1672955540027,2.9859952,1253.0,1252.9,1.79520857]
[1672955540240,2.9859952,1253.0,1252.9,5.00300857]
[1672955540446,2.9859952,1253.0,1252.9,6.19920996]
[1672955541611,2.9859952,1253.0,1252.9,2.99140996]
[1672955542346,2.9859952,1253.0,1252.9,6.19920996]
[1672955542755,3.5848667,1253.1,1252.9,4.40400139]
[1672955542968,3.5848667,1253.1,1252.9,6.19920996]
[1672955543820,3.5848667,1253.1,1252.9,4.40400139]
[1672955544234,7.76776148,1253.1,1252.9,4.40400139]
[1672955544549,2.0,1253.0,1252.9,4.40400139]
[1672955546140,2.0,1253.0,1252.9,1.19620139]
[1672955552228,2.0,1253.0,1252.8,4.3561144]
[1672955552433,9.76776148,1253.0,1252.8,4.3561144]
[1672955552845,3.5848667,1252.9,1252.8,1.1483144]
[1672955553063,3.5848667,1252.9,1252.7,4.29520857]
[1672955553271,2.98624135,1252.8,1252.7,4.29520857]
[1672955555694,2.98624135,1252.8,1252.7,1.79520857]
[1672955556647,2.98624135,1252.8,1252.6,9.89662]
[1672955556846,2.38807237,1252.7,1252.6,9.89662]
[1672955557275,5.37431372,1252.7,1252.6,9.89662]
[1672955557485,5.37431372,1252.7,1252.6,7.50300857]
[1672955558325,2.38807237,1252.7,1252.6,9.89662]
[1672955560099,2.38807237,1252.7,1252.6,8.10141143]
[1672955561368,2.38807237,1252.7,1252.6,4.89361143]
[1672955561572,2.38807237,1252.7,1252.6,8.10141143]
[1672955561899,2.38807237,1252.7,1252.6,9.8945509]
[1672955563890,2.38807237,1252.7,1252.6,6.6867509]
[1672955564099,2.38807237,1252.7,1252.6,9.8945509]
[1672955564421,2.38807237,1252.7,1252.6,6.6867509]
[1672955564625,2.38807237,1252.7,1252.6,9.8945509]
[1672955565258,5.37431372,1252.8,1252.6,9.51619489]
[1672955565571,5.37431372,1252.9,1252.7,6.30827227]
[1672955565781,2.38807237,1252.9,1252.8,7.50059571]
[1672955566417,5.37431372,1253.0,1252.8,16.08741143]
[1672955566620,2.38807237,1252.9,1252.8,16.08741143]
[1672955566833,2.38807237,1253.0,1252.8,18.09569065]
[1672955567045,2.38807237,1253.0,1252.9,4.29255093]
[1672955567468,2.38807237,1253.0,1252.9,6.68261247]
[1672955567669,2.38807237,1253.0,1252.9,4.89006154]
[1672955567886,5.37431372,1253.1,1253.0,1.5]
[1672955568104,5.37431372,1253.1,1253.0,4.7078]
[1672955568416,2.98624135,1253.1,1253.0,4.7078]
[1672955569674,2.98624135,1253.1,1253.0,1.5]
[1672955569887,5.37236414,1253.1,1253.0,4.7078]
[1672955570731,5.37236414,1253.1,1253.0,1.5]
[1672955570942,5.37236414,1253.1,1253.0,4.7078]
[1672955572085,5.37236414,1253.1,1253.0,1.5]
[1672955572519,5.37236414,1253.1,1253.0,4.7078]
[1672955572833,5.37236414,1253.1,1253.0,1.5]
[1672955573147,2.38612279,1253.1,1253.0,4.7078]
[1672955574193,5.37236414,1253.1,1253.0,4.7078]
[1672955574723,2.38612279,1253.1,1253.0,4.7078]
[1672955575246,5.37236414,1253.1,1253.0,4.7078]
[1672955575462,2.38612279,1253.1,1253.0,4.7078]
[1672955576400,5.37236414,1253.1,1253.0,4.7078]
[1672955576611,5.37088827,1253.1,1253.0,4.7078]
[1672955577033,2.98624135,1253.1,1253.0,4.7078]
[1672955578078,2.98624135,1253.1,1253.0,1.5]
[1672955578300,2.98624135,1253.1,1253.0,4.7078]
[1672955581867,2.98624135,1253.1,1253.0,3.2078]
[1672955582293,10.26776148,1253.2,1252.8,5.7078]
[1672955582507,2.38408209,1252.9,1252.8,5.7078]
[1672955582717,4.98010261,1252.9,1252.8,5.7078]
[1672955583025,4.98010261,1252.9,1252.8,3.2078]
[1672955584823,4.98010261,1252.9,1252.7,5.7078]
[1672955585025,2.38376386,1252.8,1252.7,5.7078]
[1672955589764,2.38376386,1252.8,1252.7,2.5]
[1672955590292,2.38376386,1252.9,1252.7,4.29201501]
[1672955590493,5.36386647,1253.0,1252.9,2.5]
[1672955591549,2.38376386,1253.0,1252.9,2.5]
[1672955594284,2.38376386,1253.0,1252.9,5.7078]
[1672955596165,2.98010261,1253.1,1252.9,15.48581501]
[1672955596166,2.38376386,1253.1,1252.9,15.48581501]
[1672955596376,2.38376386,1253.2,1253.0,1.79201501]
[1672955596583,2.38376386,1253.2,1253.1,4.7078]
[1672955599432,2.38376386,1253.2,1253.1,1.5]
[1672955599635,2.38376386,1253.2,1253.1,4.7078]
[1672955600909,5.36386647,1253.2,1253.1,4.7078]
[1672955601861,2.38376386,1253.2,1253.1,4.7078]
[1672955603864,5.36386647,1253.2,1253.1,4.7078]